bitfinex/quotes_ETHUSD_20250411
["timestamp","ask_amount","ask_price","bid_price","bid_amount"]
[1744356086719,55.42,1547.5,1547.4,6.78774167]
[1744356087192,61.874,1547.5,1547.4,11.44889224]
[1744356088677,6.454,1547.6,1547.5,6.46164]
[1744356088930,6.454,1547.6,1547.5,7.60644822]
[1744356089118,6.454,1547.6,1547.5,7.93047557]
[1744356089817,6.454,1547.6,1547.5,14.39211557]
[1744356094330,6.454,1547.6,1547.5,13.24730735]
[1744356095743,6.454,1547.6,1547.5,0.32402735]
[1744356095943,7.272,1547.6,1547.5,0.32402735]
[1744356096146,7.272,1547.6,1547.5,6.78605735]
[1744356096745,6.454,1547.6,1547.5,6.78605735]
[1744356096954,6.454,1547.6,1547.5,9.31542314]
[1744356099470,7.154,1547.6,1547.5,13.16877371]
[1744356100067,0.7,1547.6,1547.5,13.16877371]
[1744356100273,5.59276418,1548.2,1548.0,6.45968]
[1744356100441,4.79796418,1548.2,1548.1,6.45953]
[1744356100643,4.79796418,1548.2,1548.1,6.77571602]
[1744356100843,4.79796418,1548.2,1548.1,11.89947247]
[1744356101933,11.24896418,1548.3,1548.2,6.45911]
[1744356102729,11.24896418,1548.3,1548.2,6.7753642]
[1744356103443,11.24896418,1548.3,1548.2,0.3162542]
[1744356103641,12.3738606,1548.3,1548.1,6.45938]
[1744356103943,12.3738606,1548.3,1548.2,0.31669784]
[1744356104143,13.1243606,1548.3,1548.1,6.45938]
[1744356104331,13.1243606,1548.3,1548.0,6.45988]
[1744356104539,19.5830506,1548.3,1548.1,0.31742824]
[1744356104773,1.68237468,1548.2,1547.9,12.92064]
[1744356105071,1.68237468,1548.2,1548.0,0.31807003]
[1744356105237,1.68237468,1548.2,1548.0,6.77801003]
[1744356106482,8.14171468,1548.2,1548.0,0.31807003]
[1744356106680,7.00953,1548.1,1548.0,0.31807003]
[1744356106975,12.9205,1548.0,1547.6,6.46148]
[1744356107157,6.45,1547.9,1547.6,12.9229]
[1744356108160,0.7935,1547.8,1547.6,6.46142]
[1744356108885,0.7935,1547.8,1547.6,12.92283]
[1744356110088,6.45,1547.9,1547.7,6.4612]
[1744356110252,6.45,1547.9,1547.8,6.46078]
[1744356111288,6.45,1547.9,1547.7,6.46105]
[1744356111582,7.2284,1547.9,1547.7,6.461]
[1744356111787,7.2284,1547.9,1547.6,16.77641057]
[1744356111985,7.2284,1547.9,1547.7,6.46116]
[1744356112166,7.2284,1547.9,1547.7,12.92219]
[1744356112587,7.2284,1547.9,1547.8,6.46078]
[1744356113084,6.45,1547.9,1547.8,6.46078]
[1744356114892,6.45,1547.9,1547.7,6.461]
[1744356115260,6.45,1547.9,1547.7,12.92207]
[1744356115673,6.45,1547.9,1547.8,0.32009904]
[1744356116062,6.45,1547.9,1547.8,6.78087904]
[1744356120609,6.45,1547.9,1547.8,8.10506694]
[1744356120810,6.45,1547.9,1547.8,8.92056694]
[1744356121117,6.45,1547.9,1547.8,7.59637904]
[1744356122211,6.45,1547.9,1547.8,6.78087904]
[1744356123431,6.45,1547.9,1547.8,7.26893205]
[1744356123925,6.45,1547.9,1547.8,11.12228262]
[1744356125289,6.45,1547.9,1547.8,0.32009904]
[1744356125504,7.819165,1547.9,1547.8,0.32009904]
[1744356125835,6.45,1547.9,1547.8,6.78087904]
[1744356134753,6.45,1547.9,1547.8,7.59597904]
[1744356135274,6.45,1547.9,1547.8,8.07832015]
[1744356135770,6.45,1547.9,1547.8,6.78087904]
[1744356138259,6.45,1547.9,1547.8,10.63422961]
[1744356138593,6.45,1547.9,1547.8,11.41942961]
[1744356141462,6.45,1547.9,1547.8,14.91113599]
[1744356141763,6.45,1547.9,1547.8,7.27258542]
[1744356146695,6.09,1548.2,1548.1,6.45953]
[1744356146882,0.7967,1548.3,1548.1,6.45953]
[1744356147096,1.48537,1548.3,1548.1,6.7502558]
[1744356147465,1.48537,1548.3,1548.1,6.45953]
[1744356147802,7.94407,1548.3,1548.2,0.29043904]
[1744356148295,7.94407,1548.3,1548.0,6.45994]
[1744356148700,7.94407,1548.3,1548.1,0.29081455]
[1744356149888,7.253517,1548.2,1548.1,0.29081455]
[1744356150196,0.794407,1548.2,1548.1,0.29081455]
[1744356150398,0.794407,1548.2,1547.9,12.92051]
[1744356150601,0.794407,1548.2,1548.1,0.29099205]
[1744356150901,6.447,1548.1,1547.9,12.92051]
[1744356151199,6.447,1548.1,1548.0,6.45994]
[1744356151891,7.2131,1548.1,1547.9,6.46023]
[1744356152510,6.447,1548.1,1547.9,6.46019]
[1744356152716,6.447,1548.1,1547.9,7.15537964]
[1744356153724,6.447,1548.1,1548.0,6.45994]
[1744356155425,6.447,1548.1,1547.9,6.46019]
[1744356155594,6.447,1548.1,1547.8,6.95232638]
[1744356155912,6.447,1548.1,1547.9,12.92044]
[1744356156828,6.447,1548.1,1548.0,6.45994]
[1744356158805,10.88796418,1548.4,1548.2,6.45887]
[1744356159005,4.79796418,1548.4,1548.3,11.13134057]
[1744356159205,4.79796418,1548.4,1548.3,14.44663386]
[1744356159530,4.79796418,1548.4,1548.3,14.13134057]
[1744356159726,4.79796418,1548.4,1548.3,15.21322846]
[1744356160385,4.79796418,1548.4,1548.3,15.70875508]
[1744356161500,4.18e-06,1548.4,1548.3,15.70875508]
[1744356162587,4.18e-06,1548.4,1548.3,16.03486918]
[1744356164122,4.18e-06,1548.4,1548.3,16.58486918]
[1744356164691,6.444,1548.9,1548.8,6.45661]
[1744356164883,6.444,1548.9,1548.7,12.91368]
[1744356165124,6.444,1548.9,1548.7,6.45684]
[1744356165616,6.444,1548.9,1548.8,6.45661]
[1744356165810,6.444,1548.9,1548.8,6.74444572]
[1744356167148,7.91,1548.9,1548.8,0.28783572]
[1744356170108,7.91,1548.9,1548.6,12.91464]
[1744356170310,14.36623,1548.9,1548.8,0.28783572]
[1744356170522,14.36623,1548.9,1548.7,0.28874342]
[1744356170760,14.36623,1548.9,1548.8,0.28827948]
[1744356171052,14.36623,1548.9,1548.6,6.45726]
[1744356171255,1.436623,1548.8,1548.7,0.28900972]
[1744356171549,1.436623,1548.8,1548.7,6.45702]
[1744356171755,7.91,1548.9,1548.7,13.20571297]
[1744356173760,7.91,1548.9,1548.7,6.74869297]
[1744356174570,14.36619,1548.9,1548.7,0.29167297]
[1744356174774,7.91,1548.9,1548.7,0.29167297]
[1744356175162,7.91,1548.9,1548.7,6.74868297]
[1744356176268,7.91,1548.9,1548.7,6.74855297]
[1744356177674,7.91,1548.9,1548.8,6.45661]
[1744356177970,7.91,1548.9,1548.8,6.74521233]
[1744356178266,7.0884,1548.9,1548.8,6.74521233]
[1744356179028,7.0884,1548.9,1548.8,0.28860233]
[1744356182746,6.444,1548.9,1548.8,6.74521233]
[1744356184483,6.444,1548.9,1548.8,0.28860233]
[1744356185058,6.444,1548.9,1548.8,6.74521233]
[1744356185980,12.529,1549.0,1548.9,6.45619]
[1744356186179,6.09,1549.3,1549.1,6.45536]
[1744356186382,6.439,1549.2,1549.1,11.59982257]
[1744356186701,7.2646,1549.7,1549.5,6.45348]
[1744356186859,6.45354,1549.6,1549.2,12.90961]
[1744356187059,0.8256,1549.5,1549.2,12.90961]
[1744356187572,1.553514,1549.5,1549.1,6.93347712]
[1744356187774,0.8256,1549.5,1549.2,6.45493]
[1744356187974,0.8256,1549.5,1549.2,12.90968]
[1744356188372,0.8256,1549.5,1549.2,6.45475]
[1744356189009,7.27934,1549.5,1549.2,6.45475]
[1744356190497,0.8256,1549.5,1549.2,6.45475]
[1744356190797,0.7,1549.4,1549.2,6.45475]
[1744356190992,6.438,1549.3,1549.2,6.45475]
[1744356191803,6.438,1549.3,1549.1,6.94545455]
[1744356192096,6.438,1549.3,1549.1,13.40065455]
[1744356192700,6.438,1549.3,1549.1,6.94537455]
[1744356193689,6.438,1549.3,1549.1,13.40055455]
[1744356194089,6.438,1549.3,1549.2,6.45494]
[1744356195706,6.438,1549.3,1549.2,6.73972809]
[1744356199588,6.438,1549.3,1549.2,0.28478809]
[1744356199989,6.438,1549.3,1549.1,13.40054455]
[1744356200194,6.438,1549.3,1549.2,0.28442335]
[1744356200522,6.438,1549.3,1549.1,13.40054455]
[1744356200720,6.438,1549.3,1549.2,0.2843346]
[1744356200923,6.438,1549.3,1549.1,13.40054455]
[1744356201122,6.438,1549.3,1549.2,0.28442335]
[1744356201288,6.438,1549.3,1549.1,13.40054455]
[1744356201484,6.438,1549.3,1549.2,0.2843346]
[1744356201685,13.66462,1549.3,1549.0,10.30907057]
[1744356201887,13.66462,1549.3,1549.1,0.28515348]
[1744356202635,22.201217,1549.3,1549.1,0.28515348]
[1744356202928,8.519877,1549.3,1548.7,10.31033057]
[1744356203221,12.91111,1549.1,1548.7,13.68415]
[1744356203431,12.91111,1549.1,1548.8,0.28663425]
[1744356203726,0.7948,1549.0,1548.8,0.28663425]
[1744356203896,6.437,1548.9,1548.8,0.28663425]
[1744356204299,6.437,1548.9,1548.6,6.95116384]
[1744356204597,6.45682,1548.8,1548.7,0.28709837]
[1744356204902,6.45682,1548.8,1548.5,11.28610728]
[1744356205108,6.45682,1548.8,1548.6,0.28756255]
[1744356205991,8.391826,1548.8,1548.6,0.28756255]
[1744356206315,7.21152,1548.7,1548.6,0.28756255]
[1744356206818,0.7545,1548.7,1548.6,0.28756255]
[1744356207318,7.21152,1548.7,1548.6,0.28756255]
[1744356210039,0.7545,1548.7,1548.6,0.28756255]
[1744356210330,13.3133,1548.8,1548.6,0.28840681]
[1744356210546,15.28833,1548.8,1548.6,0.28840681]
[1744356211046,6.8565,1548.8,1548.6,0.28840681]
[1744356211209,6.09,1548.8,1548.6,7.57550681]
[1744356211409,18.98329,1548.9,1548.6,7.57550681]
[1744356212719,6.437,1548.9,1548.7,6.45668]
[1744356212934,6.437,1548.9,1548.7,13.67101868]
[1744356213239,6.437,1548.9,1548.8,0.28694557]
[1744356213997,6.437,1548.9,1548.8,6.74355557]
[1744356214338,6.437,1548.9,1548.8,0.28694557]
[1744356215110,6.437,1548.9,1548.8,6.74355557]
[1744356215532,6.437,1548.9,1548.8,0.28694557]
[1744356217342,7.15878,1548.9,1548.8,0.28694557]
[1744356217842,7.15878,1548.9,1548.7,6.45681]
[1744356218052,6.437,1548.9,1548.8,0.2888982]
[1744356221330,13.70689,1548.9,1548.4,6.45813]
[1744356221516,6.45676,1548.8,1548.5,0.29082396]
[1744356222632,6.45676,1548.8,1548.5,6.74864396]
[1744356223284,0.8046,1548.7,1548.5,0.29082396]
[1744356223566,6.45869,1548.3,1548.2,4.82826728]
[1744356223726,13.817715,1548.3,1548.2,4.82826728]
[1744356223932,12.526,1548.3,1548.2,11.55167815]
[1744356224116,12.526,1548.3,1548.2,12.38287815]
[1744356224316,12.526,1548.3,1548.2,16.23622872]
[1744356225255,6.436,1548.3,1548.2,16.23622872]
[1744356225553,6.436,1548.6,1548.4,7.24636]
[1744356225762,6.436,1548.6,1548.4,13.70434]
[1744356225957,6.436,1548.6,1548.5,0.26326359]
[1744356228762,6.436,1548.6,1548.5,6.72112359]
[1744356229537,6.436,1548.6,1548.5,8.11787195]
[1744356232138,6.436,1548.6,1548.5,6.72112359]
[1744356232637,6.437,1548.8,1548.6,6.4574]
[1744356232837,6.437,1548.8,1548.6,12.9148]
[1744356233068,6.437,1548.8,1548.7,0.26194559]
[1744356233737,6.437,1548.8,1548.7,7.52826559]
[1744356233933,6.437,1548.8,1548.7,8.92681915]
[1744356234130,6.437,1548.8,1548.7,0.26194559]
[1744356234669,12.89361,1548.8,1548.7,0.26194559]
[1744356234838,6.437,1548.8,1548.7,0.26194559]
[1744356235146,6.437,1548.8,1548.7,0.26238926]
[1744356235471,6.437,1548.8,1548.5,12.91545]
[1744356235633,6.437,1548.8,1548.7,0.26230048]
[1744356235832,6.437,1548.8,1548.6,6.71979812]
[1744356236035,6.437,1548.8,1548.7,0.26221171]
[1744356236571,13.65651,1548.8,1548.5,6.45769]
[1744356236781,7.2209,1548.5,1548.2,0.8327]
[1744356236978,6.437,1548.4,1548.2,0.8327]
[1744356237272,6.437,1548.4,1548.3,6.45869]
[1744356238062,6.437,1548.4,1548.3,7.27409]
[1744356240916,6.437,1548.4,1548.3,7.5384996]
[1744356241099,13.30531,1548.8,1548.4,6.45816]
[1744356241100,6.437,1548.7,1548.4,6.45816]
[1744356241402,6.437,1548.7,1548.5,0.26348136]
[1744356241599,9.056933,1548.7,1548.5,0.26348136]
[1744356242701,9.056933,1548.7,1548.4,6.4581]
[1744356242901,9.056933,1548.7,1548.4,12.91623]
[1744356243090,6.437,1548.7,1548.5,6.72129136]
[1744356243290,6.437,1548.7,1548.5,6.72119136]
[1744356243600,6.437,1548.7,1548.6,6.72045734]
[1744356244716,6.437,1548.7,1548.6,0.26301734]
[1744356245605,6.437,1548.7,1548.6,6.72045734]
[1744356245815,6.437,1548.7,1548.6,0.26301734]
[1744356246303,14.935882,1548.7,1548.6,0.26301734]
[1744356246513,15.011182,1548.7,1548.6,0.26301734]
[1744356246689,6.45775,1548.6,1548.2,12.91774]
[1744356246875,7.28578,1548.5,1548.2,6.45879]
[1744356247073,9.65444706,1548.5,1548.1,13.71102]
[1744356247293,9.65444706,1548.5,1548.2,6.45907]
[1744356248107,16.11248706,1548.5,1548.2,6.45907]
[1744356248272,9.65444706,1548.5,1548.2,6.45907]
[1744356248671,6.45834,1548.4,1548.1,7.25157]
[1744356248897,0.7847,1548.2,1548.0,11.28814728]
[1744356249266,0.7847,1548.2,1548.0,11.28804728]
[1744356249484,7.2093,1548.3,1548.1,6.45933]
[1744356249773,6.435,1548.3,1548.1,6.45933]
[1744356249973,0.7,1548.2,1548.1,12.91871]
[1744356250203,0.7,1548.2,1548.1,6.45933]
[1744356251481,0.7,1548.2,1548.1,9.05577573]
[1744356251808,6.09,1548.4,1548.3,6.45869]
[1744356252485,6.435,1548.6,1548.4,6.45827]
[1744356254789,12.89274,1548.6,1548.2,6.45904]
[1744356254983,7.26057,1548.5,1548.2,6.45904]
[1744356255293,9.275901,1548.5,1548.2,6.45904]
[1744356255488,9.275901,1548.5,1548.1,7.26782]
[1744356255809,9.275901,1548.5,1548.2,0.26599193]
[1744356256183,9.275901,1548.5,1548.2,6.4591]
[1744356256518,9.275901,1548.5,1548.3,0.26552768]
[1744356256684,0.9275901,1548.4,1548.3,0.26552768]
[1744356256885,9.275901,1548.5,1548.3,0.26552768]
[1744356258988,15.734071,1548.5,1548.3,0.26552768]
[1744356259315,9.275901,1548.5,1548.1,13.72729]
[1744356259514,9.275901,1548.5,1548.4,0.26506349]
[1744356259719,9.275901,1548.5,1548.2,6.45898]
[1744356259924,9.275901,1548.5,1548.4,0.26506349]
[1744356260077,9.275901,1548.5,1548.2,12.91796]
[1744356260078,9.275901,1548.5,1548.3,0.26552768]
[1744356260285,0.8027,1548.5,1548.3,6.45868]
[1744356260587,13.71382,1548.6,1548.4,0.26506349]
[1744356261895,20.17155,1548.6,1548.4,0.26506349]
[1744356262228,20.17155,1548.6,1548.3,6.45857]
[1744356262423,20.17155,1548.6,1548.5,0.26584306]
[1744356262626,22.797705,1548.6,1548.3,6.45857]
[1744356262801,22.797705,1548.6,1548.5,0.2666873]
[1744356263134,22.797705,1548.6,1548.4,0.26715156]
[1744356263305,22.797705,1548.6,1548.3,6.45857]
[1744356263505,16.339975,1548.6,1548.5,0.26810908]
[1744356263706,16.339975,1548.6,1548.4,0.2688401]
[1744356263893,16.339975,1548.6,1548.5,0.26837573]
[1744356264094,16.339975,1548.6,1548.3,6.45857]
[1744356264339,16.339975,1548.6,1548.5,0.26828685]
[1744356264730,22.797675,1548.6,1548.2,12.91798]
[1744356264930,22.797675,1548.6,1548.5,0.26846462]
[1744356265412,16.339975,1548.6,1548.2,12.9179]
[1744356265606,17.039975,1548.6,1548.5,0.26846462]
[1744356266228,9.761155,1548.6,1548.5,0.26846462]
[1744356266892,16.218595,1548.6,1548.5,0.26846462]
[1744356267094,16.218595,1548.6,1548.3,7.28274]
[1744356267429,16.968595,1548.6,1548.4,0.26830679]
[1744356274530,23.426205,1548.6,1548.4,0.26830679]
[1744356275746,6.45786,1548.5,1548.4,0.26830679]
[1744356276245,6.45786,1548.5,1548.4,0.26856202]
[1744356276545,6.45786,1548.5,1548.2,12.91814]
[1744356276859,6.45786,1548.5,1548.3,0.26902645]
[1744356277438,12.916,1548.5,1548.3,0.26902645]
[1744356277740,6.4584,1548.4,1548.1,0.8172]
[1744356277940,6.45877,1548.3,1548.0,12.10887728]
[1744356278241,6.45911,1548.2,1548.1,0.2699555]
[1744356278443,12.89211,1548.2,1548.1,0.2699555]
[1744356278647,6.433,1548.2,1548.1,0.2699555]
[1744356279627,6.433,1548.2,1548.1,6.7294855]
[1744356281052,6.433,1548.2,1548.1,7.5347855]
[1744356283313,6.09,1548.5,1548.4,7.21287]
[1744356283520,7.133,1548.6,1548.1,6.7293755]
[1744356283521,6.45886,1548.3,1548.1,0.2699555]
[1744356283743,6.45886,1548.3,1548.0,6.45976]
[1744356283934,7.27288,1548.4,1548.0,7.95530834]
[1744356284139,12.54794,1548.5,1548.1,6.4594]
[1744356284334,12.54794,1548.5,1548.1,12.9188]
[1744356284663,12.54794,1548.5,1548.2,6.45899]
[1744356285162,6.4583,1548.4,1548.1,6.45942]
[1744356285330,6.4583,1548.4,1548.1,14.68075955]
[1744356285656,6.4583,1548.4,1548.2,0.26911201]
[1744356286249,6.4583,1548.4,1548.3,0.26864756]
[1744356286452,7.2154,1548.4,1548.3,0.26864756]
[1744356286762,12.91881,1548.2,1547.9,4.82826728]
[1744356286916,6.433,1548.1,1547.9,4.82826728]
[1744356287250,12.89264,1548.1,1547.9,4.82826728]
[1744356287827,6.433,1548.1,1547.9,11.28862728]
[1744356288256,6.433,1548.1,1547.9,4.82826728]
[1744356289951,6.433,1548.1,1547.8,7.23461]
[1744356290624,6.433,1548.1,1547.8,13.69522]
[1744356290849,6.433,1548.1,1547.9,6.46029]
[1744356291354,6.433,1548.1,1547.8,7.23461]
[1744356291557,6.433,1548.1,1547.8,13.69526]
[1744356291761,6.433,1548.1,1547.8,7.23461]
[1744356291958,12.89256,1548.1,1547.8,7.23461]
[1744356292342,19.35227,1548.1,1547.8,7.23461]
[1744356292650,12.89256,1548.1,1547.8,13.69524]
[1744356293359,14.903444,1548.1,1547.8,6.46061]
[1744356293661,12.89256,1548.1,1547.8,6.46061]
[1744356293962,12.89256,1548.1,1547.8,12.92125]
[1744356294463,6.433,1548.1,1547.8,13.67695]
[1744356297426,6.433,1548.1,1547.9,6.46026]
[1744356298362,12.8926,1548.1,1547.8,7.21631]
[1744356298572,21.363228,1548.1,1547.7,18.53731728]
[1744356299571,14.903488,1548.1,1547.8,6.46075]
[1744356299866,12.8926,1548.1,1547.8,6.46075]
[1744356300165,12.8926,1548.1,1547.8,12.92139]
[1744356300330,6.433,1548.1,1547.9,6.46035]
[1744356300530,6.433,1548.1,1547.9,12.92055]
[1744356300731,6.433,1548.1,1548.0,6.73056433]
[1744356302528,1.4793,1548.6,1548.3,6.45869]
[1744356302724,6.434,1548.7,1548.4,6.45812]
[1744356302924,6.434,1548.7,1548.4,6.7268865]
[1744356303357,0.827,1548.5,1548.4,0.2687665]
[1744356303563,8.013323,1548.5,1548.4,0.2687665]
[1744356303759,1.555463,1548.5,1548.0,6.95621892]
[1744356304073,1.555463,1548.5,1548.1,6.4595]
[1744356304074,6.45855,1548.4,1548.1,6.4595]
[1744356304237,6.434,1548.3,1548.1,12.91884]
[1744356304436,6.434,1548.3,1548.2,6.45911]
[1744356307172,12.521,1548.6,1548.4,6.45809]
[1744356307384,7.2342,1548.9,1548.7,6.45673]
[1744356307547,7.2342,1548.9,1548.7,12.91357]
[1744356307548,6.431,1548.9,1548.7,12.91357]
[1744356307876,6.431,1548.9,1548.8,6.45661]
[1744356308646,6.431,1549.2,1549.1,6.45536]
[1744356309040,6.23536718,1549.4,1549.3,6.45452]
[1744356309651,6.23536718,1549.4,1549.3,10.30787057]
[1744356310172,6.23536718,1549.4,1549.3,14.11307057]
[1744356312386,6.23536718,1549.4,1549.3,11.11307057]
[1744356312599,6.23536718,1549.4,1549.3,12.91746606]
[1744356312944,6.23536718,1549.4,1549.3,15.91746606]
[1744356313156,6.43,1549.9,1549.6,6.45307]
[1744356313359,6.43,1549.9,1549.6,12.90614]
[1744356313559,6.43,1549.9,1549.6,6.45307]
[1744356313773,6.43,1549.9,1549.6,12.90612]
[1744356314179,6.43,1549.9,1549.7,6.45282]
[1744356314395,6.43,1549.9,1549.8,6.45244]
[1744356315308,13.68303,1550.2,1549.8,12.90488]
[1744356315603,7.2322,1550.2,1549.9,6.45185]
[1744356315803,7.2322,1550.2,1550.0,6.45158]
[1744356316261,7.2322,1550.2,1550.1,0.25644063]
[1744356316857,15.996312,1550.2,1549.8,6.45239]
[1744356317058,6.45135,1550.1,1549.8,6.45239]
[1744356317461,6.45135,1550.1,1549.7,14.2217611]
[1744356317673,6.45135,1550.1,1549.8,6.45237]
[1744356317874,2.2447722,1550.1,1549.8,12.90463]
[1744356318074,15.996372,1550.2,1549.9,6.45188]
[1744356318457,15.996372,1550.2,1549.8,12.90456]
[1744356318859,15.996372,1550.2,1549.9,6.45197]
[1744356319991,13.68304,1550.2,1549.9,6.45197]
[1744356320300,13.68304,1550.2,1549.8,6.45226]
[1744356320602,6.4518,1550.0,1549.6,12.9063]
[1744356320808,12.90362,1550.0,1549.6,12.9063]
[1744356320977,6.4518,1550.0,1549.7,6.45285]
[1744356321183,6.09,1550.1,1549.7,5.14394457]
[1744356321405,6.09,1550.1,1549.9,6.45167]
[1744356321591,6.09,1550.1,1549.9,12.90347]
[1744356321788,6.09,1550.1,1550.0,6.45161]
[1744356322002,7.2302,1550.2,1550.0,12.90302]
[1744356322174,7.2302,1550.2,1550.0,6.45141]
[1744356322766,6.426,1550.2,1550.1,6.45119]
[1744356322993,6.426,1550.2,1550.1,7.27639]
[1744356323203,6.426,1550.2,1550.1,6.45119]
[1744356323375,6.426,1550.2,1550.0,6.45141]
[1744356324392,12.87705,1550.2,1549.8,12.90457]
[1744356324599,14.886773,1550.2,1549.9,6.452]
[1744356324905,6.45132,1550.1,1549.7,7.74799796]
[1744356325201,8.435723,1550.2,1549.9,6.45197]
[1744356325202,14.886573,1550.2,1549.9,6.45197]
[1744356326406,8.435723,1550.2,1549.9,6.45189]
[1744356326704,6.426,1550.2,1550.0,6.45148]
[1744356327003,6.426,1550.2,1549.9,12.90378]
[1744356327205,12.87678,1550.2,1549.9,6.45189]
[1744356329181,6.45133,1550.1,1549.7,7.73065859]
[1744356329386,7.26878,1550.0,1549.7,6.45282]
[1744356329590,8.640791,1550.0,1549.7,6.45282]
[1744356329790,2.189111,1550.0,1549.7,12.90551]
[1744356330117,2.189111,1550.0,1549.7,6.45269]
[1744356330815,2.189111,1550.0,1549.8,0.25656627]
[1744356331521,8.640881,1550.0,1549.8,0.25656627]
[1744356331709,0.8640881,1549.9,1549.8,0.25656627]
[1744356331884,0.8640881,1549.9,1549.6,6.4531]
[1744356332085,0.8640881,1549.9,1549.8,0.25683268]
[1744356332388,7.2880881,1549.9,1549.7,0.25729623]
[1744356332579,7.2880881,1549.9,1549.8,0.25683268]
[1744356333011,7.2880881,1549.9,1549.6,6.4531]
[1744356333223,13.7401081,1549.9,1549.8,0.25683268]
[1744356333519,0.72880881,1549.8,1549.5,12.9071]
[1744356333822,7.18124881,1549.8,1549.5,6.45349]
[1744356333974,7.18124881,1549.8,1549.6,0.25881104]
[1744356335098,0.7,1549.7,1549.6,0.25881104]
[1744356339817,0.7,1549.7,1549.6,4.78339171]
[1744356340018,0.7,1549.7,1549.6,11.23666171]
[1744356340417,0.7,1549.7,1549.6,12.04376171]
[1744356342522,6.424,1549.9,1549.8,7.26944]
[1744356342707,6.424,1549.9,1549.8,11.12279057]
[1744356342905,6.424,1549.9,1549.8,13.13665216]
[1744356344486,0.7531,1550.2,1549.9,6.45174]
[1744356344891,0.7531,1550.2,1550.0,0.25609905]
[1744356345087,7.20405,1550.2,1550.0,0.25609905]
[1744356346823,6.45119,1550.1,1550.0,0.25609905]
[1744356347020,7.816714,1550.1,1550.0,0.25609905]
[1744356347325,7.816714,1550.1,1550.0,0.25627666]
[1744356347513,7.816714,1550.1,1549.8,12.90467]
[1744356347819,2.065524,1550.1,1550.0,0.25627666]
[1744356348018,0.7,1550.1,1549.9,6.7087501]
[1744356348326,0.7,1550.1,1550.0,0.25627666]
[1744356348824,0.7,1550.1,1550.0,6.70788666]
[1744356352326,6.423,1550.2,1550.0,6.70788666]
[1744356353206,7.2073,1550.2,1550.0,0.25627666]
[1744356353407,15.668928,1550.2,1550.0,0.25627666]
[1744356353939,0.7843,1550.1,1550.0,0.25627666]
[1744356354139,7.23549,1550.1,1550.0,0.25627666]
[1744356354456,7.23549,1550.1,1549.7,12.90547]
[1744356354799,13.68688,1550.1,1549.8,0.25324007]
[1744356354999,10.0565608,1550.1,1549.8,0.25324007]
[1744356355698,10.0565608,1550.1,1549.8,13.15789007]
[1744356355699,3.6053708,1550.1,1549.8,13.15789007]
[1744356355900,0.7843,1550.1,1549.8,13.98119007]
[1744356356442,6.423,1550.0,1549.9,6.45202]
[1744356356800,6.423,1550.0,1549.9,6.70479679]
[1744356357307,6.423,1550.0,1549.9,0.25277679]
[1744356357539,6.423,1550.0,1549.9,6.70479679]
[1744356357749,6.423,1550.0,1549.9,6.45202]
[1744356358041,6.423,1550.3,1550.2,6.45075]
[1744356358252,6.423,1550.3,1550.2,6.70213729]
[1744356358614,6.423,1550.3,1550.2,10.55548786]
[1744356358816,6.423,1550.3,1550.2,6.70213729]
[1744356359314,6.423,1550.3,1550.2,0.25138729]
[1744356359756,6.423,1550.3,1550.1,6.451]
[1744356360051,6.423,1550.3,1550.2,0.25079771]
[1744356360255,6.423,1550.3,1550.0,6.45148]
[1744356360462,6.423,1550.3,1550.1,6.70227082]
[1744356360664,6.423,1550.3,1550.1,13.15330082]
[1744356360952,6.423,1550.3,1550.2,7.26568]
[1744356361332,13.66675,1550.3,1550.2,0.25079771]
[1744356361651,20.11747,1550.3,1550.2,0.25079771]
[1744356361863,20.11747,1550.3,1550.0,4.82826728]
[1744356361864,6.45083,1550.2,1550.0,4.82826728]
[1744356362016,7.24439,1550.1,1550.0,4.82826728]
[1744356362361,8.613912,1550.1,1550.0,4.82826728]
[1744356362517,2.162722,1550.1,1550.0,4.82826728]
[1744356363767,7.2331,1550.3,1550.0,6.45144]
[1744356364133,13.68354,1550.3,1549.9,7.23358]
[1744356364337,20.13411,1550.3,1549.9,7.23358]
[1744356364769,13.68354,1550.3,1549.9,13.68545]
[1744356365268,13.68354,1550.3,1550.0,6.45159]
[1744356365442,15.696897,1550.3,1550.0,6.45159]
[1744356365933,22.147457,1550.3,1550.0,6.45159]
[1744356366134,6.45079,1550.2,1549.9,7.23357]
[1744356366470,6.45079,1550.2,1549.8,6.93653355]
[1744356366659,0.7838,1550.0,1549.7,18.51161728]
[1744356366854,6.422,1549.9,1549.8,4.82826728]
[1744356367771,12.87402,1549.9,1549.8,4.82826728]
[1744356369951,12.87402,1549.9,1549.5,17.73548728]
[1744356370149,14.884965,1549.9,1549.5,18.20786157]
[1744356370353,21.337195,1549.9,1549.5,18.20773157]
[1744356370760,21.337215,1549.9,1549.5,11.75418157]
[1744356371035,21.337215,1549.9,1549.5,18.20774157]
[1744356371742,21.337215,1549.9,1549.5,17.73536728]
[1744356372064,14.884965,1549.9,1549.5,17.73536728]
[1744356372580,14.884965,1549.9,1549.5,12.9071]
[1744356373076,21.337185,1549.9,1549.5,12.9071]
[1744356373378,14.884965,1549.9,1549.5,12.9071]
[1744356373777,14.884965,1549.9,1549.5,13.37983014]
[1744356373981,21.337245,1549.9,1549.5,13.37983014]
[1744356374281,14.884965,1549.9,1549.5,13.37978014]
[1744356374495,21.337205,1549.9,1549.5,6.92624014]
[1744356374665,14.884965,1549.9,1549.5,13.37980014]
[1744356375792,14.884965,1549.9,1549.6,0.25340531]
[1744356376396,14.884965,1549.9,1549.6,6.70666531]
[1744356376695,12.87402,1549.9,1549.6,6.70666531]